Workbook

Sheet Dateneingabe
A5: Dateneingabe
A7: eingebracht vom Mann oder Verwandten des Mannes | B7: 167000
A8: eingebracht von Frau oder Verwandten der Frau | B8: 60000
A9: Haus Kosten | B9: 260000 | C9: inklusive Nebenkosten - OGH 2022/06/22, 1 Ob 66/22w:
A10: Haus aktueller Wert | B10: 340000
A11: Schulden für Haus | B11: -20000
A12: Verlust /Wertsteigerung in Prozenten | B12: =B10/B9 -> 1.307692308
A14: Teilungsquoten:
A16: Mann | B16: 0.5
A17: Frau | B17: =1-B16 -> 0.5
A19: Kennwort: gesperrt
A21: Eingabefeld
A22: errechnete Ergebnisse
A23: Ergebnisfeld

Sheet Einbringungsquote (aktuell J.)
A2: Auf dieser Seite können keine Eingaben vorgenommen werden.
A3: Eingaben sind nur auf dem Blatt "Dateneingabe" vorzunehmen.
A5: Aufteilung eingebrachtes Vermögen nach Wertsteigerung /Wertverlust
A7: eingebracht vom Mann oder Verwandten des Mannes | B7: =Dateneingabe!B7 -> 167000
A8: eingebracht von Frau oder Verwandten der Frau | B8: =Dateneingabe!B8 -> 60000
A9: Haus Errichtungkosten | B9: =Dateneingabe!B9 -> 260000
A10: Haus aktueller Wert | B10: =Dateneingabe!B10 -> 340000
A11: Schulden für Haus | B11: =Dateneingabe!B11 -> -20000
A12: Wertzuwachs in Prozenten | B12: =Dateneingabe!B12 -> 1.307692308
A14: Auf- oder Abwertung der eingebrachten Beträge:
A16: Hyperocha | B16: =B10+B11 -> 320000
A17: Vorwegzuteilung an Mann für eingebrachtes Vermögen | B17: =B7*$B$12 -> 218384.6154
A18: Vorwegzuteilung an Frau für eingebrachtes Vermögen | B18: =B8*$B$12 -> 78461.53846
A20: Teilungsquoten:
A22: Anteil Mann | B22: =QuoteMann -> 0.5
A23: Anteil Frau | B23: =QuoteFrau -> 0.5
A25: aufzuteilen | B25: =B16-B17-B18 -> 23153.84615
A26: Aufteilungsanteil Mann | B26: =$B$25*B22 -> 11576.92308
A27: Aufteilungsanteil Frau | B27: =$B$25*B23 -> 11576.92308
A29: Mann übernimmt Haus und Schulden:
A31: Ausgleichszahlung an Frau | B31: =B27+B18 -> 90038.46154
A33: Frau übernimmt Haus und Schulden:
A35: Ausgleichszahlung an Mann | B35: =B27+B17 -> 229961.5385
A37: Kontrollrechnung Mann:
A39: Schulden | B39: =B11 -> -20000
A40: Zahlung an Frau | B40: =B31 -> 90038.46154
A41: Aufteilungsanteil Mann | B41: =B27 -> 11576.92308
A42: Vorwegbezug Mann | B42: =B17 -> 218384.6154
A43: Summe | B43: =B39*-1+B40+B41+B42 -> 340000
A45: Kontrollrechnung Frau:
A47: Schulden | B47: =B11 -> -20000
A48: Zahlung an Mann | B48: =B35 -> 229961.5385
A49: Aufteilungsanteil Frau | B49: =B27 -> 11576.92308
A50: Vorwegbezug Frau | B50: =B18 -> 78461.53846
A51: Summe | B51: =B47*-1+B48+B49+B50 -> 340000
A53: Entscheidungen:
A55: mit Anklicken können die Entscheidungen im RIS aufgerufen werden
A57: OGH 2024/03/05, 1 Ob 9/24s
A58: OGH 2022/06/22, 1 Ob 66/22w
A59: OGH 25.06.2019, 1 Ob 97/19z
A60: OGH 19.06.2018, 1 Ob 89/18x
A61: OGH 30.04.2018, 1 Ob 64/18w
A62: OGH 20.01.2020, 1 Ob 142/19t
A63: OGH 23.03.2021, 1 Ob 6/21w (Wertverminderung)
A64: OGH 21.04.2021, 1 Ob 35/21k (Wertminderung)
A66: Kennwort Aufhebung Sperre: gesperrt
